fUSD/lending_fUSD_20250105
["ID","MTS","AMOUNT","RATE_DAILY","PERIOD"]
[347703072,1736074240068,-500.0,8.219e-05,2]
[347703074,1736074240077,-500.0,8.219e-05,2]
[347703075,1736074240087,-1340.08,8.219e-05,2]
[347703076,1736074240096,-1901.73,8.219e-05,2]
[347703077,1736074240105,-500.0,8.219e-05,2]
[347703078,1736074240114,-500.0,8.219e-05,2]
[347703079,1736074240123,-684.27,8.219e-05,2]
[347703080,1736074240132,-757.51,8.219e-05,2]
[347703081,1736074240141,-500.0,8.219e-05,2]
[347703082,1736074240150,-500.0,8.219e-05,2]
[347703083,1736074240159,-500.0,8.219e-05,2]
[347703084,1736074240167,-500.0,8.219e-05,2]
[347703085,1736074240176,-595.01,8.219e-05,2]
[347703086,1736074240187,-500.0,8.219e-05,2]
[347703087,1736074240196,-500.0,8.219e-05,2]
[347703088,1736074240206,-334.76578344,8.219e-05,2]
[347703089,1736074240214,-500.0,8.219e-05,2]
[347703090,1736074240223,-485.07837936,8.219e-05,2]
[347703091,1736074240232,-500.0,8.219e-05,2]
[347703092,1736074240241,-500.0,8.219e-05,2]
[347703093,1736074240251,-500.0,8.219e-05,2]
[347703094,1736074240260,-516.11,8.219e-05,2]
[347703095,1736074240269,-824.27,8.219e-05,2]
[347703096,1736074240278,-500.0,8.219e-05,2]
[347703097,1736074240287,-500.0,8.219e-05,2]
[347703098,1736074240296,-500.0,8.219e-05,2]
[347703099,1736074240305,-500.0,8.219e-05,2]
[347703100,1736074240315,-2165.45,8.219e-05,2]
[347703101,1736074240324,-500.0,8.219e-05,2]
[347703102,1736074240333,-500.0,8.219e-05,2]
[347703103,1736074240343,-500.0,8.219e-05,2]
[347703104,1736074240352,-1245.19,8.219e-05,2]
[347703105,1736074240362,-500.0,8.219e-05,2]
[347703106,1736074240373,-611.99,8.219e-05,2]
[347703107,1736074240383,-500.0,8.219e-05,2]
[347703108,1736074240393,-714.57,8.219e-05,2]
[347703109,1736074240403,-500.0,8.219e-05,2]
[347703110,1736074240412,-500.0,8.219e-05,2]
[347703111,1736074240421,-500.0,8.219e-05,2]
[347703112,1736074240431,-500.0,8.219e-05,2]
[347703113,1736074240441,-500.0,8.219e-05,2]
[347703114,1736074240450,-500.0,8.219e-05,2]
[347703115,1736074240459,-500.0,8.219e-05,2]
[347703116,1736074240469,-500.0,8.219e-05,2]
[347703117,1736074240478,-1225.56,8.219e-05,2]
[347703118,1736074240487,-3628.61,8.219e-05,2]
[347703119,1736074240496,-500.0,8.219e-05,2]
[347703120,1736074240506,-500.0,8.219e-05,2]
[347703121,1736074240514,-686.43,8.219e-05,2]
[347703122,1736074240524,-815.75,8.219e-05,2]
[347703123,1736074240533,-500.0,8.219e-05,2]
[347703124,1736074240542,-500.0,8.219e-05,2]
[347703125,1736074240552,-500.0,8.219e-05,2]
[347703126,1736074240561,-500.0,8.219e-05,2]
[347703127,1736074240570,-500.0,8.219e-05,2]
[347703128,1736074240578,-500.0,8.219e-05,2]
[347703129,1736074240587,-500.0,8.219e-05,2]
[347703130,1736074240596,-659.47,8.219e-05,2]
[347703131,1736074240605,-500.0,8.219e-05,2]
[347703132,1736074240613,-500.0,8.219e-05,2]
[347703133,1736074240622,-655.79,8.219e-05,2]
[347703134,1736074240632,-500.0,8.219e-05,2]
[347703135,1736074240640,-500.0,8.219e-05,2]
[347703136,1736074240650,-500.0,8.219e-05,2]
[347703137,1736074240659,-535.11,8.219e-05,2]
[347703138,1736074240668,-500.0,8.219e-05,2]
[347703139,1736074240677,-1354.26,8.219e-05,2]
[347703140,1736074240687,-1354.26,8.219e-05,2]
[347703141,1736074240695,-1354.26,8.219e-05,2]
[347703142,1736074240704,-500.0,8.219e-05,2]
[347703143,1736074240713,-1354.26,8.219e-05,2]
[347703144,1736074240722,-1354.26,8.219e-05,2]
[347703145,1736074240731,-1354.26,8.219e-05,2]
[347703146,1736074240740,-500.0,8.219e-05,2]
[347703147,1736074240749,-1354.26,8.219e-05,2]
[347703148,1736074240758,-1354.26,8.219e-05,2]
[347703149,1736074240767,-500.0,8.219e-05,2]
[347703150,1736074240776,-1354.26,8.219e-05,2]
[347703151,1736074240786,-1354.26,8.219e-05,2]
[347703152,1736074240796,-1354.26,8.219e-05,2]
[347703153,1736074240805,-1354.26,8.219e-05,2]
[347703154,1736074240814,-500.0,8.219e-05,2]
[347703155,1736074240823,-500.0,8.219e-05,2]
[347703156,1736074240832,-500.0,8.219e-05,2]
[347703157,1736074240841,-500.0,8.219e-05,2]
[347703158,1736074240851,-500.0,8.219e-05,2]
[347703159,1736074240860,-500.0,8.219e-05,2]
[347703160,1736074240869,-786.27,8.219e-05,2]
[347703161,1736074240878,-500.0,8.219e-05,2]
[347703162,1736074240887,-500.0,8.219e-05,2]
[347703163,1736074240896,-500.0,8.219e-05,2]
[347703164,1736074240905,-500.0,8.219e-05,2]
[347703165,1736074240915,-500.0,8.219e-05,2]
[347703166,1736074240924,-937.36,8.219e-05,2]
[347703167,1736074240933,-500.0,8.219e-05,2]
[347703168,1736074240943,-645.87,8.219e-05,2]
[347703169,1736074240951,-1290.95,8.219e-05,2]
[347703170,1736074240961,-559.93,8.219e-05,2]
[347703171,1736074240970,-500.0,8.219e-05,2]
[347703172,1736074240979,-500.0,8.219e-05,2]
[347703173,1736074240988,-500.0,8.219e-05,2]
[347703174,1736074240997,-964.23,8.219e-05,2]
[347703175,1736074241006,-3886.59,8.219e-05,2]
[347703176,1736074241015,-803.09,8.219e-05,2]
[347703177,1736074241027,-500.0,8.219e-05,2]
[347703178,1736074241035,-500.0,8.219e-05,2]
[347703179,1736074241044,-500.0,8.219e-05,2]
[347703180,1736074241054,-939.97,8.219e-05,2]
[347703181,1736074241063,-500.0,8.219e-05,2]
[347703182,1736074241073,-500.0,8.219e-05,2]
[347703183,1736074241082,-500.0,8.219e-05,2]
[347703184,1736074241091,-500.0,8.219e-05,2]
[347703185,1736074241100,-4358.9,8.219e-05,2]
[347703186,1736074241109,-500.0,8.219e-05,2]
[347703187,1736074241118,-500.0,8.219e-05,2]
[347703188,1736074241127,-500.0,8.219e-05,2]
[347703189,1736074241136,-500.0,8.219e-05,2]
[347703190,1736074241145,-1670.21,8.219e-05,2]
[347703191,1736074241154,-806.44,8.219e-05,2]
[347703192,1736074241163,-500.0,8.219e-05,2]
[347703193,1736074241172,-500.0,8.219e-05,2]
[347703194,1736074241181,-1156.69,8.219e-05,2]
[347703195,1736074241195,-612.04,8.219e-05,2]
[347703196,1736074241204,-500.0,8.219e-05,2]
[347703197,1736074241213,-1653.44,8.219e-05,2]
[347703198,1736074241222,-500.0,8.219e-05,2]
[347703199,1736074241231,-500.0,8.219e-05,2]
[347703200,1736074241240,-500.0,8.219e-05,2]
[347703201,1736074241249,-856.38,8.219e-05,2]
[347703202,1736074241258,-410.74950448,8.219e-05,2]
[347703203,1736074241268,-500.0,8.219e-05,2]
[347703204,1736074241277,-500.0,8.219e-05,2]
[347703205,1736074241286,-500.0,8.219e-05,2]
[347703206,1736074241295,-1155.44,8.219e-05,2]
[347703207,1736074241304,-500.0,8.219e-05,2]
[347703208,1736074241313,-500.0,8.219e-05,2]
[347703209,1736074241323,-500.0,8.219e-05,2]
[347703210,1736074241332,-500.0,8.219e-05,2]
[347703211,1736074241341,-500.0,8.219e-05,2]
[347703212,1736074241350,-500.0,8.219e-05,2]
[347703213,1736074241359,-832.05,8.219e-05,2]
[347703214,1736074241368,-500.0,8.219e-05,2]
[347703215,1736074241377,-548.1,8.219e-05,2]
[347703216,1736074241386,-500.0,8.219e-05,2]
[347703217,1736074241395,-957.33,8.219e-05,2]
[347703218,1736074241404,-500.0,8.219e-05,2]
[347703219,1736074241413,-4033.7,8.219e-05,2]
[347703220,1736074241422,-904.48,8.219e-05,2]
[347703221,1736074241432,-593.18,8.219e-05,2]
[347703222,1736074241441,-500.0,8.219e-05,2]
[347703223,1736074241450,-500.0,8.219e-05,2]
[347703224,1736074241459,-500.0,8.219e-05,2]
[347703225,1736074241468,-792.88,8.219e-05,2]
[347703226,1736074241476,-500.0,8.219e-05,2]
[347703227,1736074241485,-500.0,8.219e-05,2]
[347703228,1736074241494,-1206.14,8.219e-05,2]
[347703229,1736074241502,-2219.64,8.219e-05,2]
[347703230,1736074241511,-895.08,8.219e-05,2]
[347703231,1736074241520,-500.0,8.219e-05,2]
[347703232,1736074241529,-500.0,8.219e-05,2]
[347703233,1736074241538,-500.0,8.219e-05,2]
[347703234,1736074241548,-500.0,8.219e-05,2]
[347703235,1736074241557,-500.0,8.219e-05,2]
[347703236,1736074241566,-500.0,8.219e-05,2]
[347703237,1736074241575,-500.0,8.219e-05,2]
[347703238,1736074241584,-500.0,8.219e-05,2]
[347703239,1736074241593,-500.0,8.219e-05,2]
[347703240,1736074241602,-500.0,8.219e-05,2]
[347703241,1736074241611,-500.0,8.219e-05,2]
[347703242,1736074241620,-500.0,8.219e-05,2]
[347703243,1736074241630,-500.0,8.219e-05,2]
[347703244,1736074241640,-835.12,8.219e-05,2]
[347703245,1736074241653,-500.0,8.219e-05,2]
[347703246,1736074241664,-338.74931246,8.219e-05,2]
[347703247,1736074241673,-500.0,8.219e-05,2]
[347703248,1736074241683,-500.0,8.219e-05,2]
[347703249,1736074241692,-500.0,8.219e-05,2]
[347703250,1736074241701,-1151.16,8.219e-05,2]
[347703251,1736074241710,-527.43,8.219e-05,2]
[347703252,1736074241720,-500.0,8.219e-05,2]
[347703253,1736074241728,-500.0,8.219e-05,2]
[347703254,1736074241738,-404.53570619,8.219e-05,2]
[347703255,1736074241748,-485.31815395,8.219e-05,2]
[347703256,1736074241757,-189.47829074,8.219e-05,2]
[347703257,1736074241766,-500.0,8.219e-05,2]
[347703258,1736074241775,-1312.9,8.219e-05,2]
[347703259,1736074241784,-1810.14,8.219e-05,2]
[347703260,1736074241793,-500.0,8.219e-05,2]
[347703261,1736074241803,-500.0,8.219e-05,2]
[347703262,1736074241812,-1464.94,8.219e-05,2]
[347703263,1736074241822,-500.0,8.219e-05,2]
[347703264,1736074241830,-500.0,8.219e-05,2]
[347703265,1736074241839,-500.0,8.219e-05,2]
[347703266,1736074241848,-500.0,8.219e-05,2]
[347703267,1736074241857,-500.0,8.219e-05,2]
[347703268,1736074241867,-500.0,8.219e-05,2]
[347703269,1736074241877,-5678.5,8.219e-05,2]
[347703270,1736074241886,-500.0,8.219e-05,2]
[347703271,1736074241895,-500.0,8.219e-05,2]
[347703272,1736074241904,-2046.5,8.219e-05,2]
[347703273,1736074241913,-1939.55,8.219e-05,2]
[347703274,1736074241921,-1390.3,8.219e-05,2]
[347703275,1736074241931,-500.0,8.219e-05,2]
[347703276,1736074241940,-500.0,8.219e-05,2]
[347703277,1736074241950,-500.0,8.219e-05,2]
[347703278,1736074241959,-500.0,8.219e-05,2]
[347703279,1736074241969,-575.53,8.219e-05,2]
[347703280,1736074241979,-500.0,8.219e-05,2]
[347703281,1736074241988,-500.0,8.219e-05,2]
[347703282,1736074241997,-500.0,8.219e-05,2]
[347703283,1736074242006,-500.0,8.219e-05,2]
[347703284,1736074242015,-500.0,8.219e-05,2]
[347703285,1736074242026,-500.0,8.219e-05,2]
[347703286,1736074242035,-500.0,8.219e-05,2]
[347703287,1736074242046,-500.0,8.219e-05,2]
[347703288,1736074242055,-569.44561945,8.219e-05,2]
[347703289,1736074242064,-165.18439994,8.219e-05,2]
[347703290,1736074242073,-500.0,8.219e-05,2]
[347703291,1736074242083,-500.0,8.219e-05,2]
[347703292,1736074242092,-500.0,8.219e-05,2]
[347703293,1736074242102,-500.0,8.219e-05,2]
[347703294,1736074242111,-500.0,8.219e-05,2]
[347703295,1736074242119,-500.0,8.219e-05,2]
[347703296,1736074242130,-500.0,8.219e-05,2]
[347703297,1736074242139,-4936.97,8.219e-05,2]
[347703298,1736074242148,-695.84,8.219e-05,2]
[347703299,1736074242158,-500.0,8.219e-05,2]
[347703300,1736074242166,-500.0,8.219e-05,2]
[347703301,1736074242174,-500.0,8.219e-05,2]
[347703302,1736074242183,-695.89,8.219e-05,2]
[347703303,1736074242196,-500.0,8.219e-05,2]
[347703304,1736074242205,-500.0,8.219e-05,2]
[347703305,1736074242214,-930.84,8.219e-05,2]
[347703306,1736074242223,-17789.66,8.219e-05,2]
[347703307,1736074242233,-500.0,8.219e-05,2]
[347703308,1736074242243,-500.0,8.219e-05,2]
[347703309,1736074242251,-500.0,8.219e-05,2]
[347703310,1736074242261,-500.0,8.219e-05,2]
[347703311,1736074242270,-500.0,8.219e-05,2]
[347703312,1736074242493,-1012.49,8.219e-05,2]
[347703313,1736074242504,-500.0,8.219e-05,2]
[347703314,1736074242513,-500.0,8.219e-05,2]
[347703315,1736074242522,-500.0,8.219e-05,2]
[347703316,1736074242531,-3982.39,8.219e-05,2]
[347703317,1736074242540,-500.0,8.219e-05,2]
[347703318,1736074242550,-500.0,8.219e-05,2]
[347703319,1736074242559,-500.0,8.219e-05,2]
[347703320,1736074242568,-1284.89,8.219e-05,2]
[347703321,1736074242578,-1577.42,8.219e-05,2]
[347703322,1736074242587,-500.0,8.219e-05,2]
[347703323,1736074242596,-2009.46,8.219e-05,2]
[347703324,1736074242605,-500.0,8.219e-05,2]
[347703325,1736074242614,-1056.02,8.219e-05,2]
[347703326,1736074242622,-500.0,8.219e-05,2]
[347703327,1736074242631,-652.13,8.219e-05,2]
[347703328,1736074242640,-500.0,8.219e-05,2]
[347703329,1736074242650,-500.0,8.219e-05,2]
[347703330,1736074242658,-500.0,8.219e-05,2]
[347703331,1736074242667,-500.0,8.219e-05,2]
[347703332,1736074242677,-500.0,8.219e-05,2]
[347703333,1736074242686,-500.0,8.219e-05,2]
[347703334,1736074242695,-500.0,8.219e-05,2]
[347703335,1736074242703,-1904.73,8.219e-05,2]
[347703336,1736074242712,-835.18,8.219e-05,2]
[347703337,1736074242721,-500.0,8.219e-05,2]
[347703338,1736074242730,-500.0,8.219e-05,2]
[347703339,1736074242740,-542.47,8.219e-05,2]
[347703340,1736074242748,-517.26312622,8.219e-05,2]
[347703341,1736074242757,-1860.74,8.219e-05,2]
[347703342,1736074242766,-500.0,8.219e-05,2]
[347703343,1736074242775,-500.0,8.219e-05,2]
[347703344,1736074242784,-923.76,8.219e-05,2]
[347703345,1736074242793,-500.0,8.219e-05,2]
[347703346,1736074242803,-500.0,8.219e-05,2]
[347703347,1736074242812,-500.0,8.219e-05,2]
[347703348,1736074242821,-500.0,8.219e-05,2]
[347703349,1736074242830,-1411.71,8.219e-05,2]
[347703350,1736074242839,-500.0,8.219e-05,2]
[347703351,1736074242848,-500.0,8.219e-05,2]
[347703352,1736074242858,-500.0,8.219e-05,2]
[347703353,1736074242867,-500.0,8.219e-05,2]
[347703354,1736074242876,-1058.34,8.219e-05,2]
[347703355,1736074242885,-500.0,8.219e-05,2]
[347703356,1736074242894,-500.0,8.219e-05,2]
[347703357,1736074242903,-500.0,8.219e-05,2]
[347703358,1736074242912,-500.0,8.219e-05,2]
[347703359,1736074242921,-500.0,8.219e-05,2]
[347703360,1736074242931,-2965.64,8.219e-05,2]
[347703361,1736074242940,-500.0,8.219e-05,2]
[347703362,1736074242949,-627.47,8.219e-05,2]
[347703364,1736074242958,-1246.6,8.219e-05,2]
[347703366,1736074242967,-500.0,8.219e-05,2]
[347703367,1736074242976,-500.0,8.219e-05,2]
[347703369,1736074242985,-500.0,8.219e-05,2]
[347703370,1736074242994,-500.0,8.219e-05,2]
[347703371,1736074243003,-1204.46,8.219e-05,2]
[347703372,1736074243012,-500.0,8.219e-05,2]
[347703373,1736074243021,-792.6,8.219e-05,2]
[347703374,1736074243030,-500.0,8.219e-05,2]
[347703375,1736074243039,-314.39200116,8.219e-05,2]
[347703376,1736074243048,-1540.46,8.219e-05,2]
[347703378,1736074243058,-1540.46,8.219e-05,2]
[347703380,1736074243067,-1540.46,8.219e-05,2]
[347703382,1736074243076,-1540.46,8.219e-05,2]
[347703383,1736074243085,-1540.46,8.219e-05,2]
[347703384,1736074243094,-1540.46,8.219e-05,2]
[347703385,1736074243103,-1540.46,8.219e-05,2]
[347703386,1736074243112,-1264.23,8.219e-05,2]
[347703387,1736074243121,-1276.07,8.219e-05,2]
[347703388,1736074243130,-1540.46,8.219e-05,2]
[347703389,1736074243139,-500.0,8.219e-05,2]
[347703390,1736074243149,-1540.46,8.219e-05,2]
[347703391,1736074243158,-1540.46,8.219e-05,2]
[347703392,1736074243167,-1540.46,8.219e-05,2]
[347703393,1736074243176,-500.0,8.219e-05,2]
[347703394,1736074243187,-500.0,8.219e-05,2]
[347703395,1736074243196,-1540.46,8.219e-05,2]
[347703396,1736074243205,-500.0,8.219e-05,2]
[347703397,1736074243214,-1540.46,8.219e-05,2]
[347703398,1736074243223,-1266.33,8.219e-05,2]
[347703399,1736074243232,-773.01,8.219e-05,2]
[347703400,1736074243241,-429.3,8.219e-05,2]
[347703401,1736074243250,-645.9,8.219e-05,2]
[347703402,1736074243259,-500.0,8.219e-05,2]
[347703403,1736074243268,-2002.09,8.219e-05,2]
[347703404,1736074243277,-500.0,8.219e-05,2]
[347703405,1736074243286,-364.40946575,8.219e-05,2]
[347703406,1736074243296,-500.0,8.219e-05,2]
[347703407,1736074243306,-500.0,8.219e-05,2]
[347703408,1736074243315,-500.0,8.219e-05,2]
[347703409,1736074243325,-500.0,8.219e-05,2]
[347703410,1736074243334,-501.64238515,8.219e-05,2]
[347703411,1736074243343,-4739.88,8.219e-05,2]
[347703412,1736074243352,-500.0,8.219e-05,2]
[347703413,1736074243362,-500.0,8.219e-05,2]
[347703414,1736074243371,-500.0,8.219e-05,2]
[347703415,1736074243380,-198.26807739,8.219e-05,2]
[347703416,1736074243389,-500.0,8.219e-05,2]
[347703417,1736074243398,-500.0,8.219e-05,2]
[347703418,1736074243407,-500.0,8.219e-05,2]
[347703419,1736074243417,-500.0,8.219e-05,2]
[347703420,1736074243426,-500.0,8.219e-05,2]
[347703421,1736074243435,-500.0,8.219e-05,2]
[347703422,1736074243444,-500.0,8.219e-05,2]
[347703423,1736074243453,-1397.85,8.219e-05,2]
[347703424,1736074243461,-500.0,8.219e-05,2]
[347703425,1736074243471,-500.0,8.219e-05,2]
[347703426,1736074243479,-500.0,8.219e-05,2]
[347703427,1736074243488,-590.67,8.219e-05,2]
[347703428,1736074243497,-500.0,8.219e-05,2]
[347703429,1736074243507,-500.0,8.219e-05,2]
[347703430,1736074243516,-500.0,8.219e-05,2]
[347703431,1736074243526,-500.0,8.219e-05,2]
[347703432,1736074243534,-500.0,8.219e-05,2]
[347703433,1736074243543,-1436.17,8.219e-05,2]
[347703434,1736074243553,-253.00416719,8.219e-05,2]
[347703435,1736074243562,-582.55795794,8.219e-05,2]
[347703436,1736074243571,-422.25488864,8.219e-05,2]
[347703437,1736074243581,-7147.44,8.219e-05,2]
[347703438,1736074243590,-3995.92,8.219e-05,2]
[347703439,1736074243599,-1588.45,8.219e-05,2]
[347703440,1736074243607,-500.0,8.219e-05,2]
[347703441,1736074243616,-500.0,8.219e-05,2]
[347703442,1736074243625,-500.0,8.219e-05,2]
[347703443,1736074243634,-500.0,8.219e-05,2]
[347703444,1736074243643,-500.0,8.219e-05,2]
[347703445,1736074243651,-500.0,8.219e-05,2]
[347703446,1736074243661,-500.0,8.219e-05,2]
[347703447,1736074243669,-3453.85,8.219e-05,2]
[347703448,1736074243678,-593.83,8.219e-05,2]
[347703449,1736074243688,-500.0,8.219e-05,2]
[347703450,1736074243699,-500.0,8.219e-05,2]
[347703451,1736074243708,-500.0,8.219e-05,2]
[347703452,1736074243718,-523.51123551,8.219e-05,2]
[347703453,1736074243727,-500.0,8.219e-05,2]
[347703454,1736074243737,-3614.96,8.219e-05,2]
[347703455,1736074243746,-500.0,8.219e-05,2]
[347703456,1736074243756,-500.0,8.219e-05,2]
[347703457,1736074243766,-1016.3,8.219e-05,2]
[347703458,1736074243775,-500.0,8.219e-05,2]
[347703459,1736074243785,-500.0,8.219e-05,2]
[347703460,1736074243794,-2364.96,8.219e-05,2]
[347703461,1736074243804,-500.0,8.219e-05,2]
[347703462,1736074243813,-633.89,8.219e-05,2]
[347703463,1736074243823,-500.0,8.219e-05,2]
[347703464,1736074243832,-500.0,8.219e-05,2]
[347703465,1736074243841,-500.0,8.219e-05,2]
[347703466,1736074243850,-500.0,8.219e-05,2]
[347703467,1736074243859,-500.0,8.219e-05,2]
[347703468,1736074243869,-500.0,8.219e-05,2]
[347703469,1736074243878,-500.0,8.219e-05,2]
[347703470,1736074243887,-4134.78,8.219e-05,2]
[347703471,1736074243897,-500.0,8.219e-05,2]
[347703472,1736074243906,-1592.73,8.219e-05,2]
[347703473,1736074243915,-500.0,8.219e-05,2]
[347703474,1736074243924,-500.0,8.219e-05,2]
[347703475,1736074243933,-500.0,8.219e-05,2]
[347703476,1736074243942,-500.0,8.219e-05,2]
[347703477,1736074243952,-500.0,8.219e-05,2]
[347703478,1736074243961,-500.0,8.219e-05,2]
[347703479,1736074243970,-2438.95,8.219e-05,2]
[347703480,1736074243979,-500.0,8.219e-05,2]
[347703481,1736074243988,-500.0,8.219e-05,2]
[347703482,1736074243997,-500.0,8.219e-05,2]
[347703483,1736074244006,-500.0,8.219e-05,2]
[347703484,1736074244015,-5275.27,8.219e-05,2]
[347703485,1736074244025,-2958.98,8.219e-05,2]
[347703486,1736074244034,-500.0,8.219e-05,2]
[347703487,1736074244043,-500.0,8.219e-05,2]
[347703488,1736074244053,-500.0,8.219e-05,2]
[347703489,1736074244062,-500.0,8.219e-05,2]
[347703490,1736074244072,-798.71,8.219e-05,2]
[347703491,1736074244081,-500.0,8.219e-05,2]
[347703492,1736074244091,-500.0,8.219e-05,2]
[347703493,1736074244100,-500.0,8.219e-05,2]
[347703494,1736074244109,-500.0,8.219e-05,2]
[347703495,1736074244118,-500.0,8.219e-05,2]
[347703496,1736074244127,-1226.32,8.219e-05,2]
[347703497,1736074244136,-583.9,8.219e-05,2]
[347703498,1736074244145,-660.06,8.219e-05,2]
[347703499,1736074244154,-500.0,8.219e-05,2]
[347703500,1736074244163,-5570.81,8.219e-05,2]
[347703501,1736074244177,-500.0,8.219e-05,2]
[347703502,1736074244189,-500.0,8.219e-05,2]
[347703503,1736074244198,-500.0,8.219e-05,2]
[347703504,1736074244209,-1068.83,8.219e-05,2]
[347703505,1736074244218,-1619.56,8.219e-05,2]
[347703506,1736074244229,-500.0,8.219e-05,2]
[347703507,1736074244240,-500.0,8.219e-05,2]
[347703508,1736074244249,-11962.68,8.219e-05,2]
[347703509,1736074244258,-500.0,8.219e-05,2]
[347703510,1736074244267,-500.0,8.219e-05,2]
[347703511,1736074244276,-500.0,8.219e-05,2]
[347703512,1736074244286,-500.34730987,8.219e-05,2]
[347703513,1736074244295,-500.0,8.219e-05,2]
[347703514,1736074244304,-860.88,8.219e-05,2]
[347703515,1736074244313,-745.72,8.219e-05,2]
[347703516,1736074244323,-500.0,8.219e-05,2]
[347703517,1736074244332,-500.0,8.219e-05,2]
[347703518,1736074244341,-500.0,8.219e-05,2]
[347703519,1736074244351,-500.0,8.219e-05,2]
[347703520,1736074244362,-4890.32,8.219e-05,2]
[347703521,1736074244374,-4912.21,8.219e-05,2]
[347703522,1736074244383,-500.0,8.219e-05,2]
[347703523,1736074244395,-500.0,8.219e-05,2]
[347703524,1736074244404,-500.0,8.219e-05,2]
[347703525,1736074244414,-500.20725493,8.219e-05,2]
[347703526,1736074244426,-1858.25,8.219e-05,2]
[347703527,1736074244436,-561.93350562,8.219e-05,2]
[347703528,1736074244447,-3774.93,8.219e-05,2]
[347703529,1736074244456,-753.52,8.219e-05,2]
[347703530,1736074244467,-1139.26,8.219e-05,2]
[347703531,1736074244476,-500.0,8.219e-05,2]
[347703532,1736074244488,-3340.16,8.219e-05,2]
[347703533,1736074244500,-547.0071292,8.219e-05,2]
[347703534,1736074244510,-500.0,8.219e-05,2]
[347703535,1736074244520,-239.15351684,8.219e-05,2]
[347703536,1736074244531,-500.0,8.219e-05,2]
[347703537,1736074244542,-500.0,8.219e-05,2]
[347703538,1736074244552,-500.0,8.219e-05,2]
[347703539,1736074244561,-500.0,8.219e-05,2]
[347703540,1736074244572,-500.0,8.219e-05,2]
[347703541,1736074244581,-500.0,8.219e-05,2]
[347703542,1736074244590,-1718.89,8.219e-05,2]
[347703543,1736074244599,-500.0,8.219e-05,2]
[347703544,1736074244608,-500.0,8.219e-05,2]
[347703545,1736074244618,-503.66847556,8.219e-05,2]
[347703546,1736074244627,-740.83,8.219e-05,2]
[347703547,1736074244636,-500.0,8.219e-05,2]
[347703548,1736074244645,-500.0,8.219e-05,2]
[347703549,1736074244654,-500.0,8.219e-05,2]
[347703550,1736074244664,-1504.86,8.219e-05,2]
[347703551,1736074244673,-500.0,8.219e-05,2]
[347703552,1736074244686,-500.0,8.219e-05,2]
[347703553,1736074244699,-500.0,8.219e-05,2]
[347703554,1736074244710,-1040.54,8.219e-05,2]
[347703555,1736074244721,-524.28,8.219e-05,2]
[347703556,1736074244732,-2393.45,8.219e-05,2]
[347703557,1736074244742,-500.0,8.219e-05,2]
[347703558,1736074244752,-500.0,8.219e-05,2]
[347703559,1736074244761,-500.0,8.219e-05,2]
[347703560,1736074244770,-500.0,8.219e-05,2]
[347703561,1736074244779,-500.0,8.219e-05,2]
[347703562,1736074244790,-500.0,8.219e-05,2]
[347703563,1736074244800,-500.0,8.219e-05,2]
[347703564,1736074244811,-868.76,8.219e-05,2]
[347703565,1736074244820,-250.0,8.219e-05,2]
[347703566,1736074244830,-1000.0,8.219e-05,2]
[347703567,1736074244839,-2343.81,8.219e-05,2]
[347703568,1736074244848,-1794.43,8.219e-05,2]
[347703569,1736074244858,-500.0,8.418e-05,2]
[347703570,1736074244867,-592.87,8.418e-05,2]
[347703571,1736074244877,-500.0,8.418e-05,2]
[347703572,1736074244886,-3092.94,8.418e-05,2]
[347703573,1736074244896,-3000.94,8.418e-05,2]
[347703574,1736074244905,-3427.71,8.418e-05,2]
[347703575,1736074244915,-1734.65,8.418e-05,2]
[347703576,1736074244924,-1118.28,8.418e-05,2]
[347703577,1736074244933,-4398.69,8.418e-05,2]
[347703578,1736074244943,-8474.65611766,8.418e-05,2]